[Event "Late-Titled-Tuesday-Blitz-July-09-2024"]
[Site "Chess.com"]
[Date "2024.07.09"]
[Round "2"]
[White "Chigorinetz"]
[Black "stollenmonster"]
[Result "0-1"]
[WhiteElo "2587"]
[BlackElo "2889"]
[TimeControl "180+1"]
[EndTime "14:17:11 PDT"]
[Termination "stollenmonster won by resignation"]

1. e4 {[%clk 0:03:00.9]} 1... c5 {[%clk 0:02:59.5]} 2. Nc3 {[%clk 0:03:00]} 2...
Nc6 {[%clk 0:02:59.2]} 3. Nge2 {[%clk 0:03:00.1]} 3... e5 {[%clk 0:02:59.6]} 4.
Nd5 {[%clk 0:02:59.1]} 4... d6 {[%clk 0:03:00.1]} 5. Nec3 {[%clk 0:02:59.2]}
5... Nf6 {[%clk 0:02:57.8]} 6. Bc4 {[%clk 0:02:59.3]} 6... Nxd5 {[%clk
0:02:57.6]} 7. Nxd5 {[%clk 0:02:58.6]} 7... g6 {[%clk 0:02:55.3]} 8. d3 {[%clk
0:02:56.9]} 8... Bg7 {[%clk 0:02:55.4]} 9. O-O {[%clk 0:02:56.9]} 9... O-O
{[%clk 0:02:54.4]} 10. c3 {[%clk 0:02:57.1]} 10... h6 {[%clk 0:02:53]} 11. f4
{[%clk 0:02:57.1]} 11... exf4 {[%clk 0:02:53.9]} 12. Bxf4 {[%clk 0:02:56.9]}
12... Kh7 {[%clk 0:02:54]} 13. Qd2 {[%clk 0:02:56.7]} 13... Be6 {[%clk
0:02:52.7]} 14. a4 {[%clk 0:02:55]} 14... Qd7 {[%clk 0:02:52.8]} 15. a5 {[%clk
0:02:52.9]} 15... f5 {[%clk 0:02:46.9]} 16. exf5 {[%clk 0:02:43.4]} 16... Rxf5
{[%clk 0:02:34.7]} 17. Nc7 {[%clk 0:02:31.7]} 17... Bxc4 {[%clk 0:02:30.1]} 18.
Nxa8 {[%clk 0:02:29.5]} 18... Bd5 {[%clk 0:02:07.9]} 19. a6 {[%clk 0:02:25.8]}
19... Rf8 {[%clk 0:01:14.6]} 20. axb7 {[%clk 0:02:16.6]} 20... Qxb7 {[%clk
0:01:15.5]} 21. Bxd6 {[%clk 0:02:15.1]} 21... Rxa8 {[%clk 0:01:16.1]} 22. Bxc5
{[%clk 0:02:13.8]} 22... Ne5 {[%clk 0:01:16.4]} 23. Bd4 {[%clk 0:02:11.5]} 23...
a5 {[%clk 0:01:08.2]} 24. h3 {[%clk 0:02:10]} 24... a4 {[%clk 0:01:00]} 25. Rae1
{[%clk 0:02:09]} 25... Re8 {[%clk 0:00:59.8]} 26. c4 {[%clk 0:02:04.5]} 26...
Bxg2 {[%clk 0:00:50]} 27. Bxe5 {[%clk 0:01:50.7]} 27... Bxf1 {[%clk 0:00:49.5]}
28. Bxg7 {[%clk 0:01:48.9]} 28... Rxe1 {[%clk 0:00:49.7]} 29. Qxh6+ {[%clk
0:01:48.2]} 29... Kg8 {[%clk 0:00:50.2]} 30. Qh8+ {[%clk 0:01:48.1]} 30... Kf7
{[%clk 0:00:50.6]} 31. Qf8+ {[%clk 0:01:47.4]} 31... Ke6 {[%clk 0:00:51.3]} 32.
Qf2 {[%clk 0:01:33.6]} 32... Qg2+ {[%clk 0:00:22.7]} 33. Qxg2 {[%clk 0:01:32.8]}
33... Bxg2+ {[%clk 0:00:23.6]} 34. Kxg2 {[%clk 0:01:33.1]} 34... Rd1 {[%clk
0:00:24.1]} 35. d4 {[%clk 0:01:31.1]} 35... Kf7 {[%clk 0:00:23.6]} 36. Be5
{[%clk 0:01:30.1]} 36... Rd2+ {[%clk 0:00:24.1]} 37. Kf3 {[%clk 0:01:30]} 37...
Rxb2 {[%clk 0:00:25]} 38. d5 {[%clk 0:01:25.2]} 38... a3 {[%clk 0:00:25.5]} 39.
c5 {[%clk 0:01:24]} 39... Rb5 {[%clk 0:00:23]} 40. c6 {[%clk 0:01:17.8]} 40...
Rxd5 {[%clk 0:00:21.6]} 41. c7 {[%clk 0:01:17.6]} 41... Rc5 {[%clk 0:00:21.2]}
42. Bd6 {[%clk 0:01:14.7]} 42... Rc3+ {[%clk 0:00:20.2]} 43. Ke4 {[%clk
0:01:15]} 43... a2 {[%clk 0:00:20.9]} 44. Be5 {[%clk 0:01:15.1]} 44... Rxc7
{[%clk 0:00:20.6]} 0-1

[Event "Late-Titled-Tuesday-Blitz-July-09-2024"]
[Site "Chess.com"]
[Date "2024.07.09"]
[Round "2"]
[White "bob1263"]
[Black "TheAlienParty"]
[Result "1-0"]
[WhiteElo "2522"]
[BlackElo "2330"]
[TimeControl "180+1"]
[EndTime "14:17:11 PDT"]
[Termination "bob1263 won by resignation"]

1. d4 {[%clk 0:03:00.9]} 1... Nf6 {[%clk 0:02:58.7]} 2. c4 {[%clk 0:02:59.6]}
2... e6 {[%clk 0:02:58.4]} 3. Nc3 {[%clk 0:02:54.5]} 3... Bb4 {[%clk 0:02:57.8]}
4. Bg5 {[%clk 0:02:54.2]} 4... h6 {[%clk 0:02:50.2]} 5. Bh4 {[%clk 0:02:53]}
5... d5 {[%clk 0:02:49.8]} 6. e3 {[%clk 0:02:51.1]} 6... c5 {[%clk 0:02:44.4]}
7. cxd5 {[%clk 0:02:45.4]} 7... Qxd5 {[%clk 0:02:39.2]} 8. Bxf6 {[%clk 0:02:15]}
8... gxf6 {[%clk 0:02:37.9]} 9. Nf3 {[%clk 0:02:14]} 9... Nc6 {[%clk 0:02:35.6]}
10. a3 {[%clk 0:02:04.4]} 10... Bxc3+ {[%clk 0:02:27.5]} 11. bxc3 {[%clk
0:02:03.8]} 11... b6 {[%clk 0:02:12.3]} 12. c4 {[%clk 0:01:58.7]} 12... Qh5
{[%clk 0:02:11.1]} 13. d5 {[%clk 0:01:57.2]} 13... Ne5 {[%clk 0:02:08.1]} 14.
Be2 {[%clk 0:01:50.7]} 14... Bb7 {[%clk 0:01:53.4]} 15. Qa4+ {[%clk 0:01:46.3]}
15... Kf8 {[%clk 0:01:49.8]} 16. O-O {[%clk 0:01:31.3]} 16... exd5 {[%clk
0:01:43.8]} 17. Nxe5 {[%clk 0:01:21.4]} 17... Qxe2 {[%clk 0:01:30.5]} 18. Qd7
{[%clk 0:00:58.6]} 18... fxe5 {[%clk 0:01:28.5]} 19. Qxb7 {[%clk 0:00:57.5]}
19... Rd8 {[%clk 0:01:12.7]} 20. Qc7 {[%clk 0:00:52.7]} 20... Kg7 {[%clk
0:01:04.8]} 21. Qxe5+ {[%clk 0:00:51.4]} 21... f6 {[%clk 0:01:02.2]} 22. Qe7+
{[%clk 0:00:49.9]} 22... Kg6 {[%clk 0:01:01.1]} 23. cxd5 {[%clk 0:00:49]} 23...
Rhe8 {[%clk 0:00:53.7]} 24. Qxa7 {[%clk 0:00:47.4]} 24... Rxd5 {[%clk
0:00:51.8]} 25. Qxb6 {[%clk 0:00:46.4]} 25... Rg5 {[%clk 0:00:51]} 26. g3 {[%clk
0:00:45.4]} 26... h5 {[%clk 0:00:50.1]} 27. Rad1 {[%clk 0:00:42.7]} 27... h4
{[%clk 0:00:47.4]} 28. Rd6 {[%clk 0:00:42.4]} 28... Qf3 {[%clk 0:00:46.2]} 29.
Qc6 {[%clk 0:00:37.1]} 29... Re4 {[%clk 0:00:44.9]} 30. Rxf6+ {[%clk 0:00:35.5]}
30... Qxf6 {[%clk 0:00:42.6]} 31. Qxe4+ {[%clk 0:00:35.4]} 31... Rf5 {[%clk
0:00:36.4]} 32. g4 {[%clk 0:00:34.5]} 1-0

[Event "Late-Titled-Tuesday-Blitz-July-09-2024"]
[Site "Chess.com"]
[Date "2024.07.09"]
[Round "2"]
[White "xhembulla"]
[Black "Martins-BR"]
[Result "1-0"]
[WhiteElo "2624"]
[BlackElo "2356"]
[TimeControl "180+1"]
[EndTime "14:17:12 PDT"]
[Termination "xhembulla won on time"]

1. h4 {[%clk 0:03:00.9]} 1... d5 {[%clk 0:02:56.6]} 2. d4 {[%clk 0:03:00.9]}
2... Nf6 {[%clk 0:02:52.1]} 3. c4 {[%clk 0:03:00.5]} 3... dxc4 {[%clk
0:02:47.5]} 4. Nf3 {[%clk 0:03:00.7]} 4... h6 {[%clk 0:02:39.9]} 5. e3 {[%clk
0:03:00.5]} 5... Be6 {[%clk 0:02:38]} 6. Nbd2 {[%clk 0:02:59.9]} 6... b5 {[%clk
0:02:32.7]} 7. a4 {[%clk 0:03:00]} 7... c6 {[%clk 0:02:32.1]} 8. g3 {[%clk
0:02:59.7]} 8... a6 {[%clk 0:02:25]} 9. Bg2 {[%clk 0:03:00.1]} 9... Bd5 {[%clk
0:02:24.1]} 10. O-O {[%clk 0:03:00.1]} 10... Nbd7 {[%clk 0:02:19.6]} 11. Qe2
{[%clk 0:02:59.8]} 11... Ne4 {[%clk 0:02:10]} 12. Ne5 {[%clk 0:02:58]} 12...
Nxe5 {[%clk 0:02:04.8]} 13. dxe5 {[%clk 0:02:58.9]} 13... Nxd2 {[%clk
0:02:03.3]} 14. Bxd5 {[%clk 0:02:55.8]} 14... cxd5 {[%clk 0:01:58.7]} 15. Bxd2
{[%clk 0:02:56.1]} 15... e6 {[%clk 0:01:58.4]} 16. Qg4 {[%clk 0:02:36.6]} 16...
b4 {[%clk 0:01:44]} 17. h5 {[%clk 0:02:33.8]} 17... a5 {[%clk 0:01:42.3]} 18. e4
{[%clk 0:02:32.6]} 18... d4 {[%clk 0:01:39.2]} 19. Rfd1 {[%clk 0:02:33]} 19...
Bc5 {[%clk 0:01:37.1]} 20. Qxg7 {[%clk 0:02:32.3]} 20... Rf8 {[%clk 0:01:31.7]}
21. Bxh6 {[%clk 0:02:32.5]} 21... Qb6 {[%clk 0:01:28.8]} 22. Qg5 {[%clk
0:02:30.9]} 22... Rh8 {[%clk 0:01:23.9]} 23. Bg7 {[%clk 0:02:30.8]} 23... Rh7
{[%clk 0:01:07.4]} 24. Rac1 {[%clk 0:02:22.9]} 24... c3 {[%clk 0:01:02.8]} 25.
bxc3 {[%clk 0:02:23.8]} 25... bxc3 {[%clk 0:01:00.4]} 26. Bf6 {[%clk 0:02:23.8]}
26... Bf8 {[%clk 0:00:46.2]} 27. Rb1 {[%clk 0:02:06.6]} 27... c2 {[%clk
0:00:40.9]} 28. Rxb6 {[%clk 0:02:06.3]} 28... cxd1=Q+ {[%clk 0:00:40.4]} 29. Kg2
{[%clk 0:02:06.3]} 29... Rxh5 {[%clk 0:00:39.2]} 30. Rxe6+ {[%clk 0:02:02.2]}
30... fxe6 {[%clk 0:00:16.9]} 31. Qg6+ {[%clk 0:02:02.4]} 31... Kd7 {[%clk
0:00:16.9]} 32. Qf7+ {[%clk 0:02:03.1]} 32... Kc8 {[%clk 0:00:14.1]} 33. Qxe6+
{[%clk 0:02:04]} 33... Kb7 {[%clk 0:00:14.2]} 34. Qd5+ {[%clk 0:02:04.5]} 34...
Kb8 {[%clk 0:00:14.3]} 35. Qb5+ {[%clk 0:02:03.9]} 35... Kc8 {[%clk 0:00:13.8]}
36. Qc6+ {[%clk 0:02:04]} 36... Kb8 {[%clk 0:00:14]} 37. Qb6+ {[%clk 0:02:02.1]}
37... Kc8 {[%clk 0:00:14]} 38. Qc6+ {[%clk 0:02:02.2]} 38... Kb8 {[%clk
0:00:14.2]} 39. Bh4 {[%clk 0:01:40.3]} 39... Rxh4 {[%clk 0:00:12.2]} 40. Qb6+
{[%clk 0:01:40.3]} 40... Kc8 {[%clk 0:00:11.2]} 41. Qe6+ {[%clk 0:01:41.2]}
41... Kb8 {[%clk 0:00:09.8]} 42. gxh4 {[%clk 0:01:42.1]} 42... Bb4 {[%clk
0:00:04.5]} 43. Qb6+ {[%clk 0:01:37.8]} 43... Kc8 {[%clk 0:00:01.8]} 44. Qe6+
{[%clk 0:01:38.7]} 44... Kb8 {[%clk 0:00:01.8]} 45. Qg8+ {[%clk 0:01:38.4]}
45... Kb7 {[%clk 0:00:01]} 46. Qg7+ {[%clk 0:01:39.3]} 46... Kb8 {[%clk
0:00:01.3]} 47. e6 {[%clk 0:01:40.2]} 1-0

[Event "Late-Titled-Tuesday-Blitz-July-09-2024"]
[Site "Chess.com"]
[Date "2024.07.09"]
[Round "2"]
[White "Mikhail_Golubev"]
[Black "SantoBlue"]
[Result "0-1"]
[WhiteElo "2630"]
[BlackElo "2996"]
[TimeControl "180+1"]
[EndTime "14:17:21 PDT"]
[Termination "SantoBlue won on time"]

1. e4 {[%clk 0:03:00.9]} 1... d6 {[%clk 0:03:00.9]} 2. d4 {[%clk 0:02:59.9]}
2... Nf6 {[%clk 0:03:01]} 3. Nc3 {[%clk 0:02:59.7]} 3... e5 {[%clk 0:03:01.7]}
4. Nf3 {[%clk 0:02:58.7]} 4... Nbd7 {[%clk 0:03:01.9]} 5. Bc4 {[%clk 0:02:58.5]}
5... Be7 {[%clk 0:03:02.6]} 6. a4 {[%clk 0:02:58.7]} 6... O-O {[%clk 0:03:02.9]}
7. O-O {[%clk 0:02:58.6]} 7... c6 {[%clk 0:03:03.6]} 8. Re1 {[%clk 0:02:57]}
8... h6 {[%clk 0:03:03.9]} 9. h3 {[%clk 0:02:55.4]} 9... Re8 {[%clk 0:02:56.1]}
10. Be3 {[%clk 0:02:48.1]} 10... exd4 {[%clk 0:02:56.2]} 11. Nxd4 {[%clk
0:02:42.6]} 11... Bf8 {[%clk 0:02:56.5]} 12. Bf4 {[%clk 0:02:16.8]} 12... Nc5
{[%clk 0:02:53.9]} 13. Qf3 {[%clk 0:02:07.2]} 13... Ne6 {[%clk 0:02:52.6]} 14.
Nxe6 {[%clk 0:01:56.7]} 14... Bxe6 {[%clk 0:02:51.2]} 15. Bxe6 {[%clk
0:01:54.8]} 15... Rxe6 {[%clk 0:02:52.1]} 16. Rad1 {[%clk 0:01:53.5]} 16... Qa5
{[%clk 0:02:52.2]} 17. Qd3 {[%clk 0:01:28]} 17... Rae8 {[%clk 0:02:51.5]} 18.
Bd2 {[%clk 0:01:17.2]} 18... Qh5 {[%clk 0:02:42.3]} 19. b3 {[%clk 0:00:46.4]}
19... Qg6 {[%clk 0:02:40.8]} 20. f3 {[%clk 0:00:42.2]} 20... a6 {[%clk
0:02:38.1]} 21. Ne2 {[%clk 0:00:39.9]} 21... Nh5 {[%clk 0:02:19.3]} 22. Nf4
{[%clk 0:00:36.3]} 22... Nxf4 {[%clk 0:02:18.9]} 23. Bxf4 {[%clk 0:00:37]} 23...
d5 {[%clk 0:02:19.4]} 24. e5 {[%clk 0:00:29.8]} 24... Bc5+ {[%clk 0:01:58.8]}
25. Kh1 {[%clk 0:00:28]} 25... Qxd3 {[%clk 0:01:59.3]} 26. cxd3 {[%clk
0:00:27.8]} 26... Bd4 {[%clk 0:01:58.9]} 27. Bg3 {[%clk 0:00:15.1]} 27... Bxe5
{[%clk 0:01:59.1]} 28. f4 {[%clk 0:00:15.3]} 28... Bd4 {[%clk 0:01:58.4]} 29.
Rxe6 {[%clk 0:00:14.4]} 29... Rxe6 {[%clk 0:01:59.3]} 30. Re1 {[%clk 0:00:14.6]}
30... Rxe1+ {[%clk 0:01:48.9]} 31. Bxe1 {[%clk 0:00:15.5]} 31... f5 {[%clk
0:01:49.4]} 32. g4 {[%clk 0:00:14.9]} 32... Kf7 {[%clk 0:01:48.5]} 33. Kg2
{[%clk 0:00:13.4]} 33... Ke6 {[%clk 0:01:48.4]} 34. Kf3 {[%clk 0:00:13.5]} 34...
b5 {[%clk 0:01:48.9]} 35. Bd2 {[%clk 0:00:12.4]} 35... bxa4 {[%clk 0:01:46.7]}
36. bxa4 {[%clk 0:00:13]} 36... c5 {[%clk 0:01:47.4]} 37. Ba5 {[%clk 0:00:08.1]}
37... c4 {[%clk 0:01:47]} 38. Ke2 {[%clk 0:00:07.5]} 38... fxg4 {[%clk
0:01:39.4]} 39. hxg4 {[%clk 0:00:07.1]} 39... g6 {[%clk 0:01:40.3]} 40. Bb4
{[%clk 0:00:06.3]} 40... Bb2 {[%clk 0:01:40.1]} 41. Ba5 {[%clk 0:00:05]} 41...
Bc1 {[%clk 0:01:40.2]} 42. dxc4 {[%clk 0:00:01.9]} 42... dxc4 {[%clk 0:01:39]}
43. Kf3 {[%clk 0:00:02.3]} 43... Bb2 {[%clk 0:01:36.4]} 44. Ke4 {[%clk
0:00:01.9]} 44... Kf6 {[%clk 0:01:30.3]} 45. Kd5 {[%clk 0:00:01.2]} 45... c3
{[%clk 0:01:29.4]} 46. Ke4 {[%clk 0:00:01]} 46... c2 {[%clk 0:01:29.7]} 47. Bd2
{[%clk 0:00:01.2]} 47... c1=Q {[%clk 0:01:30.1]} 48. Bxc1 {[%clk 0:00:01.7]}
48... Bxc1 {[%clk 0:01:31]} 0-1

[Event "Late-Titled-Tuesday-Blitz-July-09-2024"]
[Site "Chess.com"]
[Date "2024.07.09"]
[Round "2"]
[White "shirovin"]
[Black "TheoSlade"]
[Result "0-1"]
[WhiteElo "2084"]
[BlackElo "2452"]
[TimeControl "180+1"]
[EndTime "14:17:22 PDT"]
[Termination "TheoSlade won on time"]

1. e4 {[%clk 0:03:00.9]} 1... e5 {[%clk 0:02:59.6]} 2. Nf3 {[%clk 0:02:59.8]}
2... Nc6 {[%clk 0:03:00.1]} 3. Bc4 {[%clk 0:03:00.1]} 3... Bc5 {[%clk
0:02:59.6]} 4. b4 {[%clk 0:02:58.6]} 4... Bxb4 {[%clk 0:02:58.7]} 5. c3 {[%clk
0:02:58.3]} 5... Ba5 {[%clk 0:02:59.2]} 6. d4 {[%clk 0:02:57.9]} 6... d6 {[%clk
0:02:59.5]} 7. Qb3 {[%clk 0:02:52.2]} 7... Qd7 {[%clk 0:02:55.4]} 8. O-O {[%clk
0:02:38.1]} 8... Bb6 {[%clk 0:02:29.4]} 9. Bb5 {[%clk 0:02:21.1]} 9... Nf6
{[%clk 0:02:08.8]} 10. d5 {[%clk 0:02:15.4]} 10... Nxe4 {[%clk 0:02:08.7]} 11.
dxc6 {[%clk 0:02:10.2]} 11... bxc6 {[%clk 0:02:09.6]} 12. Bc4 {[%clk 0:01:55.5]}
12... O-O {[%clk 0:02:07.6]} 13. Nbd2 {[%clk 0:01:48.2]} 13... Nc5 {[%clk
0:02:06]} 14. Qc2 {[%clk 0:01:41.6]} 14... d5 {[%clk 0:02:03.1]} 15. Be2 {[%clk
0:01:38.9]} 15... Qe7 {[%clk 0:01:57]} 16. Ba3 {[%clk 0:01:32.7]} 16... Bg4
{[%clk 0:01:51]} 17. Nb3 {[%clk 0:01:30.8]} 17... Bxf3 {[%clk 0:01:42.2]} 18.
Bxf3 {[%clk 0:01:29.6]} 18... a5 {[%clk 0:01:39.3]} 19. Rfe1 {[%clk 0:01:24]}
19... e4 {[%clk 0:01:26.9]} 20. Be2 {[%clk 0:01:22.1]} 20... a4 {[%clk
0:01:27.2]} 21. Nd4 {[%clk 0:01:16.7]} 21... Qd7 {[%clk 0:01:21.7]} 22. f3
{[%clk 0:01:00.7]} 22... Rfe8 {[%clk 0:01:20.6]} 23. Bf1 {[%clk 0:00:52.3]}
23... Ne6 {[%clk 0:01:18.4]} 24. Rad1 {[%clk 0:00:40]} 24... exf3 {[%clk
0:01:18]} 25. gxf3 {[%clk 0:00:36.3]} 25... Nxd4 {[%clk 0:01:13.8]} 26. Rxe8+
{[%clk 0:00:34.1]} 26... Rxe8 {[%clk 0:01:14.7]} 27. cxd4 {[%clk 0:00:32]} 27...
Re3 {[%clk 0:01:13.1]} 28. Bg2 {[%clk 0:00:21.6]} 28... Rxa3 {[%clk 0:01:11.7]}
29. Qb2 {[%clk 0:00:08.9]} 29... Re3 {[%clk 0:01:07.8]} 30. Qd2 {[%clk
0:00:07.5]} 30... Qe6 {[%clk 0:01:04.5]} 31. h3 {[%clk 0:00:05.1]} 31... Re2
{[%clk 0:01:02.7]} 32. Qf4 {[%clk 0:00:03.3]} 32... Qe3+ {[%clk 0:01:02.8]} 33.
Qxe3 {[%clk 0:00:02.6]} 33... Rxe3 {[%clk 0:01:03.7]} 34. Kf2 {[%clk 0:00:03.1]}
34... Ra3 {[%clk 0:01:03.3]} 35. Rd2 {[%clk 0:00:02.5]} 35... c5 {[%clk
0:01:03.5]} 36. dxc5 {[%clk 0:00:02]} 36... Bxc5+ {[%clk 0:01:04.4]} 37. Kg3
{[%clk 0:00:02.1]} 37... Bd6+ {[%clk 0:01:03.8]} 38. Kf2 {[%clk 0:00:01.5]}
38... c6 {[%clk 0:01:03.2]} 39. Rc2 {[%clk 0:00:01.1]} 39... c5 {[%clk
0:01:01.4]} 0-1

[Event "Late-Titled-Tuesday-Blitz-July-09-2024"]
[Site "Chess.com"]
[Date "2024.07.09"]
[Round "2"]
[White "FMOlexandrProhorov"]
[Black "HATilay"]
[Result "0-1"]
[WhiteElo "2347"]
[BlackElo "2569"]
[TimeControl "180+1"]
[EndTime "14:17:23 PDT"]
[Termination "HATilay won by resignation"]

1. d4 {[%clk 0:03:00.9]} 1... Nf6 {[%clk 0:02:59.7]} 2. c4 {[%clk 0:03:00.5]}
2... e6 {[%clk 0:03:00]} 3. Nc3 {[%clk 0:03:00.7]} 3... Bb4 {[%clk 0:02:59.7]}
4. f3 {[%clk 0:03:01]} 4... c5 {[%clk 0:02:57.1]} 5. d5 {[%clk 0:03:01.2]} 5...
b5 {[%clk 0:02:57.3]} 6. e4 {[%clk 0:02:59.6]} 6... d6 {[%clk 0:02:56.1]} 7. Bg5
{[%clk 0:02:57.2]} 7... h6 {[%clk 0:02:52]} 8. Bh4 {[%clk 0:02:57]} 8... O-O
{[%clk 0:02:40.6]} 9. Bd3 {[%clk 0:02:47.3]} 9... bxc4 {[%clk 0:02:40.3]} 10.
Bxc4 {[%clk 0:02:47]} 10... Ba6 {[%clk 0:02:41]} 11. Bxa6 {[%clk 0:02:44.6]}
11... Nxa6 {[%clk 0:02:41.7]} 12. Ne2 {[%clk 0:02:42.5]} 12... Nc7 {[%clk
0:02:42.2]} 13. dxe6 {[%clk 0:02:39.8]} 13... fxe6 {[%clk 0:02:41.8]} 14. O-O
{[%clk 0:02:39.7]} 14... Ba5 {[%clk 0:02:22.8]} 15. Bg3 {[%clk 0:02:26.5]} 15...
e5 {[%clk 0:02:20.6]} 16. Qd3 {[%clk 0:02:12.4]} 16... Bb6 {[%clk 0:02:17.8]}
17. Bf2 {[%clk 0:02:09.9]} 17... Kh8 {[%clk 0:02:08.8]} 18. Rad1 {[%clk
0:02:07.2]} 18... Nfe8 {[%clk 0:02:07.3]} 19. Nd5 {[%clk 0:01:57.2]} 19... Ne6
{[%clk 0:02:06.4]} 20. Nec3 {[%clk 0:01:44.7]} 20... Ba5 {[%clk 0:01:53.8]} 21.
Nb5 {[%clk 0:01:33.2]} 21... a6 {[%clk 0:01:45.8]} 22. Na3 {[%clk 0:01:25.2]}
22... Nd4 {[%clk 0:01:28.3]} 23. Bxd4 {[%clk 0:01:22.5]} 23... cxd4 {[%clk
0:01:19.6]} 24. Nc4 {[%clk 0:01:16.4]} 24... Bc7 {[%clk 0:00:57.8]} 25. f4
{[%clk 0:01:16.2]} 25... Nf6 {[%clk 0:00:43.9]} 26. fxe5 {[%clk 0:00:59.9]}
26... dxe5 {[%clk 0:00:43.9]} 27. Nxc7 {[%clk 0:00:40.3]} 27... Qxc7 {[%clk
0:00:43.5]} 28. Rf5 {[%clk 0:00:35.2]} 28... Nxe4 {[%clk 0:00:25.4]} 29. Rxe5
{[%clk 0:00:31.9]} 29... Nf2 {[%clk 0:00:23.6]} 30. Qxd4 {[%clk 0:00:29.5]}
30... Nxd1 {[%clk 0:00:23.3]} 31. Qxd1 {[%clk 0:00:28.6]} 31... Qxc4 {[%clk
0:00:23.5]} 0-1

[Event "Late-Titled-Tuesday-Blitz-July-09-2024"]
[Site "Chess.com"]
[Date "2024.07.09"]
[Round "2"]
[White "KChor05"]
[Black "Bauman_Guy"]
[Result "0-1"]
[WhiteElo "2613"]
[BlackElo "2935"]
[TimeControl "180+1"]
[EndTime "14:17:29 PDT"]
[Termination "Bauman_Guy won by resignation"]

1. e4 {[%clk 0:03:00.9]} 1... c5 {[%clk 0:03:00.1]} 2. Nf3 {[%clk 0:03:00.6]}
2... d6 {[%clk 0:03:00.5]} 3. d4 {[%clk 0:03:00.8]} 3... Nf6 {[%clk 0:03:01]} 4.
Nc3 {[%clk 0:03:00.7]} 4... cxd4 {[%clk 0:03:01.3]} 5. Nxd4 {[%clk 0:03:01.6]}
5... a6 {[%clk 0:03:01.8]} 6. Be2 {[%clk 0:03:01.3]} 6... e5 {[%clk 0:03:01.9]}
7. Nb3 {[%clk 0:03:01.3]} 7... Be7 {[%clk 0:03:02.5]} 8. Be3 {[%clk 0:03:00.1]}
8... Be6 {[%clk 0:03:02.9]} 9. Nd5 {[%clk 0:03:00.5]} 9... Bxd5 {[%clk
0:03:02.3]} 10. exd5 {[%clk 0:03:01.4]} 10... Nbd7 {[%clk 0:03:02.4]} 11. Qd2
{[%clk 0:02:57.9]} 11... O-O {[%clk 0:02:52.1]} 12. Na5 {[%clk 0:02:52.8]} 12...
Qc7 {[%clk 0:02:50.9]} 13. c4 {[%clk 0:02:51.7]} 13... Rfe8 {[%clk 0:02:37.2]}
14. O-O {[%clk 0:02:50.4]} 14... Bf8 {[%clk 0:02:35.4]} 15. b4 {[%clk
0:02:46.7]} 15... b6 {[%clk 0:02:35.4]} 16. Nc6 {[%clk 0:02:44.1]} 16... Nb8
{[%clk 0:02:35]} 17. b5 {[%clk 0:02:17]} 17... a5 {[%clk 0:02:34.9]} 18. f4
{[%clk 0:02:13.5]} 18... exf4 {[%clk 0:02:29.8]} 19. Rxf4 {[%clk 0:02:05.4]}
19... Nbd7 {[%clk 0:02:28.4]} 20. Raf1 {[%clk 0:02:00.7]} 20... Re4 {[%clk
0:02:26.3]} 21. Bd4 {[%clk 0:01:53.3]} 21... Rae8 {[%clk 0:02:22]} 22. Bd3
{[%clk 0:01:49.1]} 22... Rxf4 {[%clk 0:02:16.8]} 23. Qxf4 {[%clk 0:01:50]} 23...
Ne5 {[%clk 0:02:13.2]} 24. Bc2 {[%clk 0:01:28]} 24... Nfd7 {[%clk 0:02:01.1]}
25. Qh4 {[%clk 0:01:14.4]} 25... g6 {[%clk 0:01:58.5]} 26. Bc3 {[%clk
0:01:06.2]} 26... Nc5 {[%clk 0:01:53.4]} 27. Re1 {[%clk 0:00:47.1]} 27... Bg7
{[%clk 0:01:51.9]} 28. Qg3 {[%clk 0:00:37.3]} 28... Ncd7 {[%clk 0:01:36.5]} 29.
h4 {[%clk 0:00:32.4]} 29... h5 {[%clk 0:01:34.5]} 30. Bd4 {[%clk 0:00:25.1]}
30... Qc8 {[%clk 0:01:17.4]} 31. Qf2 {[%clk 0:00:20.1]} 31... Ng4 {[%clk
0:01:09.5]} 32. Rxe8+ {[%clk 0:00:11.1]} 32... Qxe8 {[%clk 0:01:09.1]} 33. Qd2
{[%clk 0:00:10.8]} 33... Bxd4+ {[%clk 0:01:04]} 34. Nxd4 {[%clk 0:00:11.7]}
34... Qe5 {[%clk 0:00:57.9]} 35. Nf3 {[%clk 0:00:10]} 35... Qa1+ {[%clk
0:00:54.5]} 36. Bd1 {[%clk 0:00:06]} 36... Nde5 {[%clk 0:00:52.4]} 37. Nd4
{[%clk 0:00:03.4]} 37... Nxc4 {[%clk 0:00:51.4]} 38. Qf2 {[%clk 0:00:03.9]}
38... Nxf2 {[%clk 0:00:51.3]} 0-1

[Event "Late-Titled-Tuesday-Blitz-July-09-2024"]
[Site "Chess.com"]
[Date "2024.07.09"]
[Round "2"]
[White "Zorbos"]
[Black "flaviorcb"]
[Result "1-0"]
[WhiteElo "2685"]
[BlackElo "2184"]
[TimeControl "180+1"]
[EndTime "14:17:29 PDT"]
[Termination "Zorbos won by resignation"]

1. e4 {[%clk 0:03:00.9]} 1... c5 {[%clk 0:02:59.8]} 2. Nf3 {[%clk 0:03:00.2]}
2... g6 {[%clk 0:03:00.4]} 3. h4 {[%clk 0:02:59]} 3... h5 {[%clk 0:02:59.8]} 4.
d4 {[%clk 0:02:56.4]} 4... cxd4 {[%clk 0:03:00.7]} 5. Nxd4 {[%clk 0:02:54.3]}
5... Nc6 {[%clk 0:02:58.4]} 6. c4 {[%clk 0:02:48.1]} 6... Nf6 {[%clk 0:02:56.5]}
7. Nc3 {[%clk 0:02:46.5]} 7... Nxd4 {[%clk 0:02:56.8]} 8. Qxd4 {[%clk
0:02:46.2]} 8... Bg7 {[%clk 0:02:57.3]} 9. Be3 {[%clk 0:02:46.5]} 9... d6 {[%clk
0:02:57.1]} 10. f3 {[%clk 0:02:41.4]} 10... Be6 {[%clk 0:02:57.2]} 11. O-O-O
{[%clk 0:02:39]} 11... O-O {[%clk 0:02:56.5]} 12. Qd2 {[%clk 0:02:37.7]} 12...
Qa5 {[%clk 0:02:55.6]} 13. Kb1 {[%clk 0:02:35.3]} 13... Rfc8 {[%clk 0:02:55.1]}
14. Nd5 {[%clk 0:02:35.1]} 14... Qxd2 {[%clk 0:02:53.1]} 15. Rxd2 {[%clk
0:02:32]} 15... Nxd5 {[%clk 0:02:49.7]} 16. cxd5 {[%clk 0:02:32.9]} 16... Bd7
{[%clk 0:02:49.9]} 17. Be2 {[%clk 0:02:29.7]} 17... a6 {[%clk 0:02:42.9]} 18. g4
{[%clk 0:02:30]} 18... hxg4 {[%clk 0:02:28.3]} 19. fxg4 {[%clk 0:02:30.9]} 19...
Be5 {[%clk 0:02:25.2]} 20. h5 {[%clk 0:02:30]} 20... gxh5 {[%clk 0:02:25.2]} 21.
gxh5 {[%clk 0:02:29.1]} 21... Kh7 {[%clk 0:02:23.9]} 22. Bd4 {[%clk 0:02:20.8]}
22... Bxd4 {[%clk 0:02:20.6]} 23. Rxd4 {[%clk 0:02:21.7]} 23... Rg8 {[%clk
0:02:20.2]} 24. Rd3 {[%clk 0:02:13.8]} 24... Rac8 {[%clk 0:02:06]} 25. Rb3
{[%clk 0:02:08.7]} 25... Rc7 {[%clk 0:01:56.9]} 26. Rf3 {[%clk 0:02:04.6]} 26...
f6 {[%clk 0:01:44.1]} 27. Bd3 {[%clk 0:02:05]} 27... Rg2 {[%clk 0:01:36.6]} 28.
e5+ {[%clk 0:02:01.1]} 28... f5 {[%clk 0:01:33.5]} 29. e6 {[%clk 0:01:57.5]}
29... Be8 {[%clk 0:01:27]} 30. Rxf5 {[%clk 0:01:45.6]} 30... Kh6 {[%clk
0:01:24.7]} 31. Rf8 {[%clk 0:01:44.7]} 31... Rc8 {[%clk 0:01:17.9]} 32. Bg6
{[%clk 0:01:35]} 32... Bd7 {[%clk 0:00:34.6]} 33. Rf7 {[%clk 0:01:19.4]} 33...
Bb5 {[%clk 0:00:26.5]} 34. Rxe7 {[%clk 0:01:10.1]} 34... Be2 {[%clk 0:00:25.2]}
35. Rxb7 {[%clk 0:01:05.8]} 35... Bf3 {[%clk 0:00:23.8]} 36. Rh7+ {[%clk
0:00:57.8]} 36... Kg5 {[%clk 0:00:23.8]} 37. e7 {[%clk 0:00:58.7]} 37... Bxd5
{[%clk 0:00:20]} 38. Ka1 {[%clk 0:00:47.6]} 38... Bc6 {[%clk 0:00:17.1]} 39. Rc1
{[%clk 0:00:43.5]} 1-0